[Event "TUR-ch U13-18 Open 2023"]
[Site "Antalya"]
[Date "2023.01.27"]
[Round "9"]
[White "Uysal, Ugur"]
[Black "Coban, Azad"]
[Result "*"]
[ECO "A48"]
[WhiteElo "1760"]
[BlackElo "1417"]
[Annotator "NA RC COMBH"]
[PlyCount "24"]
[EventDate "2023.01.17"]
[EventType "swiss"]
[EventCountry "TUR"]
[SourceTitle "playchess.com"]
[Source "ChessBase"]
[SourceQuality "1"]
[TimeControl "5400+30"]

1. d4 {[%emt 0:01:00]} Nf6 {[%emt 0:01:00]} 2. Bf4 {[%emt 0:00:30]} g6 {[%emt 0:00:30]} 3. e3 {[%emt 0:00:00]} Bg7 {[%emt 0:00:30]} 4. h3 {[%emt 0:01:00]} O-O {[%emt 0:00:30]} 5. Nf3 {[%emt 0:00:00]} d6 {[%emt 0:00:30]} 6. Be2 {[%emt 0:00:00]} Nfd7 {[%emt 0:00:30]} 7. O-O {[%emt 0:01:30]} e5 {[%emt 0:00:30]} 8. Bh2 {[%emt 0:01:30]} f5 {[%emt 0:00:30]} 9. c3 {[%emt 0:04:30]} Nc6 {[%emt 0:00:30]} 10. Nbd2 {[%emt 0:00:30]} e4 {[%emt 0:00:30]} 11. Ne1 {[%emt 0:01:30]} Qe8 {[%emt 0:01:30]} 12. b4 {[%emt 0:08:30]} a5 {[%emt 0:03:30]} *

[Event "TUR-ch U13-18 Open 2023"]
[Site "Antalya"]
[Date "2023.01.27"]
[Round "9"]
[White "Avsar, Gediz"]
[Black "Simsek, Suat Can"]
[Result "1-0"]
[ECO "B31"]
[WhiteElo "1748"]
[BlackElo "1761"]
[Annotator "NA RC COMBH"]
[PlyCount "73"]
[EventDate "2023.01.17"]
[EventType "swiss"]
[EventCountry "TUR"]
[SourceTitle "playchess.com"]
[Source "ChessBase"]
[SourceQuality "1"]
[TimeControl "5400+30"]

1. e4 c5 2. Nf3 Nc6 3. Bb5 g6 4. Bxc6 dxc6 5. d3 Bg7 6. h3 Nf6 7. O-O O-O 8. a4 a5 9. Na3 Nd7 10. Nc4 e5 11. Be3 b6 12. Qd2 f6 13. Nh2 Qc7 14. f4 Ba6 15. f5 g5 16. Qe2 Qd8 17. h4 h6 18. hxg5 fxg5 19. b3 Qe7 20. Ng4 Bxc4 21. bxc4 Rab8 22. Rab1 Rb7 23. Qf3 Nf6 24. Nxf6+ Bxf6 25. Rb2 Qd6 26. Qh5 Be7 27. g3 Kg7 28. Kg2 Rf6 29. Rh1 Rf8 30. Bxc5 Qf6 31. Bxe7 Rxe7 32. Rxb6 Rc7 33. Rhb1 Qd6 34. Rb7 Rf6 35. Rxc7+ Qxc7 36. Qe8 Qd6 37. Rb7+ 1-0

[Event "TUR-ch U13-18 Open 2023"]
[Site "Antalya"]
[Date "2023.01.27"]
[Round "9"]
[White "Kolat, Ata"]
[Black "Zerey, Demhat"]
[Result "0-1"]
[ECO "E69"]
[WhiteElo "1732"]
[BlackElo "1756"]
[Annotator "NA RC COMBH"]
[PlyCount "140"]
[EventDate "2023.01.17"]
[EventType "swiss"]
[EventCountry "TUR"]
[SourceTitle "playchess.com"]
[Source "ChessBase"]
[SourceQuality "1"]
[TimeControl "5400+30"]

1. c4 Nf6 2. Nf3 d6 3. d4 g6 4. g3 Bg7 5. Bg2 O-O 6. O-O Nbd7 7. Nc3 e5 8. h3 a6 9. Re1 Re8 10. e4 c6 11. Be3 exd4 12. Nxd4 Nc5 13. Qc2 a5 14. b3 Qe7 15. f3 Bd7 16. Rad1 Rad8 17. Bf2 Nh5 18. Nce2 Ne6 19. Nxe6 Bxe6 20. Bb6 Rc8 21. Qd2 d5 22. exd5 cxd5 23. cxd5 Qd6 24. Bxa5 Bf5 25. Qb4 Qa6 26. Bf1 Bd3 27. d6 Bf8 28. Bb6 Bxe2 29. Rxe2 Rxe2 30. d7 Rd8 31. Bc5 Bxc5+ 32. Qxc5 Nxg3 33. Rd6 Qxa2 34. Qb6 Kg7 35. Qxd8 Qa1 36. Qf6+ Qxf6 37. Rxf6 Rd2 38. Rb6 Nxf1 39. Kxf1 Rxd7 40. Kf2 Re7 41. f4 Kh6 42. f5 Kg5 43. fxg6 hxg6 44. Kg3 Re3+ 45. Kg2 Re7 46. Kg3 Kf5 47. Kf3 Ke5 48. Ke3 Kd5+ 49. Kd3 Kc5 50. Rf6 b5 51. h4 Kb4 52. Rb6 Re5 53. Kc2 Rf5 54. Rb7 Rf4 55. Rb6 Rxh4 56. Rf6 Rh7 57. Rf4+ Kc5 58. Rf6 Rg7 59. Kc3 Rh7 60. b4+ Kd5 61. Rb6 Rh3+ 62. Kb2 Kc4 63. Rf6 Kxb4 64. Rf4+ Kc5 65. Rxf7 Rg3 66. Rc7+ Kb4 67. Rf7 Rg2+ 68. Kb1 g5 69. Rf3 g4 70. Re3 Kc4 0-1

[Event "TUR-ch U13-18 Open 2023"]
[Site "Antalya"]
[Date "2023.01.27"]
[Round "9"]
[White "Acar, Kaan"]
[Black "Anacak, Hasan Gunes"]
[Result "0-1"]
[ECO "B67"]
[WhiteElo "1684"]
[BlackElo "1898"]
[Annotator "NA RC COMBH"]
[PlyCount "70"]
[EventDate "2023.01.17"]
[EventType "swiss"]
[EventCountry "TUR"]
[SourceTitle "playchess.com"]
[Source "ChessBase"]
[SourceQuality "1"]
[TimeControl "5400+30"]

1. e4 {[%emt 0:01:00]} c5 {[%emt 0:06:00]} 2. Nf3 {[%emt 0:00:00]} d6 {[%emt 0:01:30]} 3. d4 {[%emt 0:00:00]} cxd4 {[%emt 0:00:30]} 4. Nxd4 {[%emt 0:00:30]} Nf6 {[%emt 0:00:30]} 5. Nc3 {[%emt 0:00:30]} Nc6 {[%emt 0:00:30]} 6. Bg5 {[%emt 0:00:30]} e6 {[%emt 0:00:30]} 7. Qd2 {[%emt 0:00:30]} a6 {[%emt 0:00:30]} 8. O-O-O {[%emt 0:00:30]} Bd7 $14 {[%emt 0:00:00]} 9. f3 Nxd4 10. Qxd4 Be7 11. h4 h6 12. Be3 {[%emt 0:20:30]} h5 {[%emt 0:22:30]} 13. Bg5 {[%emt 0:08:30]} Qc7 {[%emt 0:03:30]} 14. Kb1 {[%emt 0:08:30]} b5 {[%emt 0:10:30]} 15. Bd3 {[%emt 0:23:30]} b4 {[%emt 0:25:30]} 16. Ne2 {[%emt 0:01:30]} a5 {[%emt 0:05:30]} 17. Qc4 {[%emt 0:14:30]} Qb6 {[%emt 0:03:30]} 18. Qd4 {[%emt 0:00:30]} Qc7 {[%emt 0:01:30]} 19. Qc4 {[%emt 0:00:30]} Qb7 {[%emt 0:03:30]} 20. Ng3 {[%emt 0:11:27]} a4 {[%emt 0:12:40]} 21. Rhe1 {[%emt 0:01:40]} Ra5 {[%emt 0:00:23]} 22. e5 {[%emt 0:02:29]} Rc5 {[%emt 0:02:02]} 23. Qd4 {[%emt 0:01:50]} Rd5 {[%emt 0:02:03]} 24. Qf4 {[%emt 0:00:37]} dxe5 {[%emt 0:00:05]} 25. Rxe5 {[%emt 0:01:28]} Bd6 {[%emt 0:01:12]} 26. Bxf6 {[%emt 0:00:55]} gxf6 {[%emt 0:00:35]} 27. Ne4 {[%emt 0:00:30]} Bxe5 {[%emt 0:00:30]} 28. Nxf6+ {[%emt 0:00:30]} Bxf6 {[%emt 0:00:30]} 29. Qxf6 {[%emt 0:00:30]} Rg8 {[%emt 0:00:30]} 30. Re1 {[%emt 0:00:00]} Qc7 {[%emt 0:02:58]} 31. Bh7 {[%emt 0:00:59]} Qg3 {[%emt 0:00:49]} 32. Rc1 {[%emt 0:00:01]} Qg7 {[%emt 0:00:13]} 33. Qf4 {[%emt 0:00:43]} Qxh7 {[%emt 0:00:52]} 34. Qb8+ {[%emt 0:00:01]} Ke7 {[%emt 0:00:35]} 35. Qxb4+ {[%emt 0:00:30]} Kf6 {[%emt 0:00:00]} 0-1

[Event "TUR-ch U13-18 Open 2023"]
[Site "Antalya"]
[Date "2023.01.27"]
[Round "9"]
[White "Binboga, Yaman"]
[Black "Tezcan, Alper"]
[Result "*"]
[ECO "B80"]
[WhiteElo "1641"]
[BlackElo "1568"]
[Annotator "NA COMBH"]
[PlyCount "27"]
[EventDate "2023.01.17"]
[EventType "swiss"]
[EventCountry "TUR"]
[SourceTitle "playchess.com"]
[Source "ChessBase"]
[SourceQuality "1"]
[TimeControl "5400+30"]

1. e4 {[%emt 0:01:00]} c5 {[%emt 0:01:00]} 2. Nf3 {[%emt 0:00:30]} e6 {[%emt 0:00:30]} 3. d4 {[%emt 0:00:30]} cxd4 {[%emt 0:00:30]} 4. Nxd4 {[%emt 0:00:30]} a6 {[%emt 0:00:30]} 5. Nc3 {[%emt 0:00:30]} Qc7 {[%emt 0:00:00]} 6. g3 {[%emt 0:01:30]} Nf6 {[%emt 0:00:00]} 7. Bg2 {[%emt 0:00:30]} d6 {[%emt 0:00:00]} 8. O-O {[%emt 0:00:00]} Be7 {[%emt 0:01:00]} 9. Re1 {[%emt 0:00:00]} O-O {[%emt 0:00:30]} 10. Be3 {[%emt 0:01:30]} Nc6 {[%emt 0:00:30]} 11. f4 {[%emt 0:01:30]} Bd7 {[%emt 0:01:30]} 12. h3 {[%emt 0:02:30]} Rad8 {[%emt 0:07:30]} 13. Qf3 {[%emt 0:06:30]} Nxd4 {[%emt 0:02:30]} 14. Bxd4 {[%emt 0:00:30]} *

[Event "TUR-ch U13-18 Open 2023"]
[Site "Antalya"]
[Date "2023.01.27"]
[Round "9"]
[White "Tas, Yasar Asil"]
[Black "Taspinar, Yanki"]
[Result "*"]
[WhiteElo "1622"]
[BlackElo "2275"]
[Annotator "TA"]
[PlyCount "18"]
[EventDate "2023.01.17"]
[EventType "swiss"]
[EventCountry "TUR"]
[SourceTitle "playchess.com"]
[Source "ChessBase"]
[SourceQuality "1"]
[TimeControl "5400+30"]

{[%evp 9,18,0,20,0,0,-10,-18,-15,-6,-25,-13]} 1. Nf3 {[%emt 0:01:00]} d5 {[%emt 0:01:00]} 2. g3 {[%emt 0:00:30]} g6 {[%emt 0:00:30]} 3. Bg2 {[%emt 0:00:30]} Bg7 {[%emt 0:00:30]} 4. O-O {[%emt 0:00:30]} e5 {[%emt 0:00:00]} 5. d3 {[%emt 0:00:00]} Nc6 {[%emt 0:01:00]} 6. c3 {[%emt 0:07:00] A07: Réti Opening: New York and Capablanca Systems.} Nf6 {[%emt 0:02:30]} 7. Bg5 {[%emt 0:05:30]} h6 {[%emt 0:04:30]} 8. Bxf6 {[%emt 0:00:30]} Bxf6 {[%emt 0:05:30] [#]} 9. Qc2 $146 {[%emt 0:00:00]} ({Predecessor:} 9. e4 Be6 10. Qe2 O-O 11. Nbd2 a5 12. Rfe1 Re8 13. Qe3 Bg7 14. Nb3 d4 15. cxd4 exd4 {0-1 Milijanovic,G (2047)-Stanic,A (2114) Belgrade-chTB Quality 2018 (4.5)}) 9... O-O {[%emt 0:00:00] Not much happened in this game.   Weighted Error Value: White=0.06 (flawless) /Black=0.08 (flawless)} *

[Event "TUR-ch U13-18 Open 2023"]
[Site "Antalya"]
[Date "2023.01.27"]
[Round "9"]
[White "Sinay, Ahmet"]
[Black "Tarman, Ufuk"]
[Result "0-1"]
[ECO "A48"]
[WhiteElo "1612"]
[BlackElo "1282"]
[Annotator "NA RC COMBH"]
[PlyCount "138"]
[EventDate "2023.01.17"]
[EventType "swiss"]
[EventCountry "TUR"]
[SourceTitle "playchess.com"]
[Source "ChessBase"]
[SourceQuality "1"]
[TimeControl "5400+30"]

1. d4 Nf6 2. Bf4 g6 3. e3 Bg7 4. h3 O-O 5. Nf3 d6 6. Be2 Nfd7 7. O-O e5 8. Bh2 f5 9. c3 Nc6 10. Nbd2 e4 11. Ne1 Qe8 12. b4 a5 13. Qb3+ Kh8 14. b5 Ne7 15. b6 {[%emt 0:31:00]} a4 {[%emt 0:22:00]} 16. Qb2 {[%emt 0:05:30]} Nxb6 {[%emt 0:14:30]} 17. Bxd6 {[%emt 0:00:30]} cxd6 {[%emt 0:00:30]} 18. Qxb6 {[%emt 0:00:00]} Qc6 {[%emt 0:18:30]} 19. Qb2 {[%emt 0:25:00]} f4 {[%emt 0:14:30]} 20. exf4 {[%emt 0:17:30]} Rxf4 {[%emt 0:09:30]} 21. f3 {[%emt 0:01:35]} e3 {[%emt 0:03:00]} 22. Ne4 {[%emt 0:06:11]} Rf8 {[%emt 0:01:35]} 23. Qb5 {[%emt 0:03:51]} Qc7 {[%emt 0:05:30]} 24. d5 {[%emt 0:06:33]} Ra5 {[%emt 0:00:47]} 25. Qd3 {[%emt 0:01:27]} Rxd5 {[%emt 0:01:09]} 26. Qxe3 {[%emt 0:00:50]} Nf5 {[%emt 0:00:10]} 27. Qc1 {[%emt 0:01:02]} Bh6 {[%emt 0:00:37]} 28. f4 {[%emt 0:00:30]} Qb6+ {[%emt 0:00:30]} 29. Kh2 {[%emt 0:00:30]} Qe3 {[%emt 0:01:58]} 30. Qxe3 {[%emt 0:02:12]} Nxe3 {[%emt 0:00:30]} 31. Rf3 {[%emt 0:00:00]} Nf5 {[%emt 0:04:03]} 32. Bc4 {[%emt 0:01:02]} Ra5 {[%emt 0:00:30]} 33. Rd1 {[%emt 0:00:46]} b5 {[%emt 0:01:01]} 34. Bf1 {[%emt 0:00:54]} Bb7 {[%emt 0:00:17]} 35. Bd3 {[%emt 0:00:26]} Bc6 {[%emt 0:01:35]} 36. Rf2 {[%emt 0:00:33]} Ne3 {[%emt 0:00:47]} 37. Rdd2 {[%emt 0:00:23]} Nd5 {[%emt 0:00:50]} 38. g3 {[%emt 0:00:24]} b4 {[%emt 0:01:25]} 39. c4 {[%emt 0:00:19]} Nc3 {[%emt 0:00:26]} 40. Nxc3 {[%emt 0:01:05]} bxc3 {[%emt 0:00:30]} 41. Rc2 {[%emt 0:00:30]} Bg7 {[%emt 0:00:30]} 42. Nf3 {[%emt 0:00:30]} d5 {[%emt 0:00:30]} 43. Ng5 {[%emt 0:00:30]} Re8 {[%emt 0:00:30]} 44. Rfe2 {[%emt 0:00:30]} Rxe2+ {[%emt 0:00:30]} 45. Rxe2 {[%emt 0:00:30]} d4 {[%emt 0:00:30]} 46. Re6 {[%emt 0:00:30]} Bd7 {[%emt 0:00:30]} 47. Re7 {[%emt 0:00:30]} Ra7 {[%emt 0:00:30]} 48. Kg1 {[%emt 0:00:30]} Rb7 {[%emt 0:00:30]} 49. g4 {[%emt 0:00:30]} h6 {[%emt 0:00:30]} 50. Nf7+ {[%emt 0:00:30]} Kg8 {[%emt 0:00:30]} 51. Nd6 {[%emt 0:00:30]} Rc7 {[%emt 0:00:30]} 52. Nb5 {[%emt 0:00:30]} Bf6 {[%emt 0:00:30]} 53. Re2 {[%emt 0:00:30]} Rb7 {[%emt 0:00:30]} 54. f5 {[%emt 0:00:30]} gxf5 {[%emt 0:00:30]} 55. gxf5 {[%emt 0:00:30]} Bg5 {[%emt 0:00:30]} 56. Nxd4 {[%emt 0:00:30]} Bd2 {[%emt 0:03:33]} 57. Nb5 {[%emt 0:00:42]} Bc6 {[%emt 0:00:30]} 58. Rg2+ {[%emt 0:00:30]} Bxg2 {[%emt 0:00:30]} 59. Kxg2 {[%emt 0:00:30]} Rd7 {[%emt 0:00:30]} 60. Be4 {[%emt 0:00:30]} Kf7 {[%emt 0:00:30]} 61. c5 {[%emt 0:00:00]} Rd8 {[%emt 0:00:29]} 62. c6 {[%emt 0:00:00]} Kf6 {[%emt 0:00:30]} 63. Kf3 {[%emt 0:00:00]} Rc8 {[%emt 0:00:18]} 64. c7 {[%emt 0:00:39]} Ke5 {[%emt 0:00:30]} 65. Ke2 {[%emt 0:01:09]} Rxc7 {[%emt 0:01:00]} 66. Nxc7 {[%emt 0:00:30]} Kxe4 {[%emt 0:00:30]} 67. f6 {[%emt 0:00:30]} h5 {[%emt 0:00:00]} 68. f7 {[%emt 0:00:00]} Bh6 {[%emt 0:00:00]} 69. Kd1 {[%emt 0:00:09]} Kd3 {[%emt 0:00:00]} 0-1

[Event "TUR-ch U13-18 Open 2023"]
[Site "Antalya"]
[Date "2023.01.27"]
[Round "9"]
[White "Tezcan, Alper"]
[Black "Okur, Batin"]
[Result "1-0"]
[ECO "B80"]
[WhiteElo "1568"]
[BlackElo "1614"]
[Annotator "NA RC COMBH"]
[PlyCount "121"]
[EventDate "2023.01.17"]
[EventType "swiss"]
[EventCountry "TUR"]
[SourceTitle "playchess.com"]
[Source "ChessBase"]
[SourceQuality "1"]
[TimeControl "5400+30"]

1. e4 c5 2. Nf3 e6 3. d4 cxd4 4. Nxd4 a6 5. Nc3 Qc7 6. g3 Nf6 7. Bg2 d6 8. O-O Be7 9. Re1 O-O 10. Be3 Nc6 11. f4 Bd7 12. h3 Rad8 13. Qf3 Nxd4 14. Bxd4 Bc6 15. Qf2 {[%emt 0:19:00]} Nd7 {[%emt 0:41:00]} 16. Rad1 {[%emt 0:03:30]} Rfe8 {[%emt 0:11:30]} 17. Rd2 {[%emt 0:10:30]} b5 {[%emt 0:02:30]} 18. a3 {[%emt 0:01:30]} a5 {[%emt 0:08:30]} 19. Qe2 {[%emt 0:16:30]} Qb7 {[%emt 0:01:30]} 20. b3 {[%emt 0:15:30]} b4 {[%emt 0:09:30]} 21. axb4 {[%emt 0:00:30]} axb4 {[%emt 0:00:30]} 22. Nd1 {[%emt 0:00:30]} e5 {[%emt 0:01:30]} 23. Bb2 {[%emt 0:01:30]} exf4 {[%emt 0:14:25]} 24. gxf4 {[%emt 0:00:30]} Bf8 {[%emt 0:03:57]} 25. Nf2 {[%emt 0:06:30]} Nc5 {[%emt 0:00:38]} 26. Rdd1 {[%emt 0:02:30]} f5 {[%emt 0:04:10]} 27. Qc4+ {[%emt 0:05:30]} d5 {[%emt 0:02:34]} 28. exd5 {[%emt 0:01:32]} Rxe1+ {[%emt 0:00:30]} 29. Rxe1 {[%emt 0:00:00]} Bxd5 {[%emt 0:00:56]} 30. Bxd5+ {[%emt 0:00:16]} Qxd5 {[%emt 0:00:00]} 31. Qxd5+ {[%emt 0:02:19]} Rxd5 {[%emt 0:00:00]} 32. Rd1 {[%emt 0:01:47]} Rxd1+ {[%emt 0:00:09]} 33. Nxd1 {[%emt 0:00:30]} Bd6 {[%emt 0:02:02]} 34. Ne3 {[%emt 0:02:38]} g6 {[%emt 0:00:30]} 35. Nd5 {[%emt 0:00:30]} Ne6 {[%emt 0:00:36]} 36. Be5 {[%emt 0:00:35]} Bc5+ {[%emt 0:00:12]} 37. Kf1 {[%emt 0:00:57]} Kf7 {[%emt 0:00:52]} 38. Ke2 {[%emt 0:01:00]} g5 {[%emt 0:00:22]} 39. fxg5 {[%emt 0:01:59]} Nxg5 {[%emt 0:00:15]} 40. Nf4 {[%emt 0:02:36]} Ne4 {[%emt 0:01:16]} 41. Kd3 {[%emt 0:00:48]} Nf2+ {[%emt 0:00:21]} 42. Kc4 {[%emt 0:00:37]} Be3 {[%emt 0:00:21]} 43. Kxb4 {[%emt 0:03:28]} Bxf4 {[%emt 0:00:30]} 44. Bxf4 {[%emt 0:00:30]} Nxh3 {[%emt 0:00:00]} 45. Bb8 {[%emt 0:00:00]} f4 {[%emt 0:00:24]} 46. Kc3 {[%emt 0:00:02]} Ke6 {[%emt 0:00:50]} 47. Kd3 {[%emt 0:01:06]} Kf5 {[%emt 0:01:03]} 48. b4 {[%emt 0:01:03]} h5 {[%emt 0:00:31]} 49. b5 {[%emt 0:00:21]} h4 {[%emt 0:00:33]} 50. b6 {[%emt 0:04:05]} Nf2+ {[%emt 0:00:29]} 51. Kd4 {[%emt 0:00:59]} h3 {[%emt 0:00:43]} 52. Bxf4 {[%emt 0:00:30]} Kxf4 {[%emt 0:00:30]} 53. b7 {[%emt 0:00:30]} Kf3 {[%emt 0:00:30]} 54. b8=Q {[%emt 0:00:30]} Kg2 {[%emt 0:00:12]} 55. Qb7+ {[%emt 0:00:00]} Kg3 {[%emt 0:00:30]} 56. Ke3 {[%emt 0:00:02]} Nd1+ {[%emt 0:00:30]} 57. Ke2 {[%emt 0:00:30]} Nc3+ {[%emt 0:00:30]} 58. Kf1 {[%emt 0:00:30]} Nd1 {[%emt 0:00:30]} 59. Qg7+ {[%emt 0:00:30]} Kf3 {[%emt 0:00:00]} 60. Qf6+ {[%emt 0:00:59]} Kg3 {[%emt 0:00:27]} 61. Qd6+ {[%emt 0:00:30]} 1-0

[Event "TUR-ch U13-18 Open 2023"]
[Site "Antalya"]
[Date "2023.01.27"]
[Round "9"]
[White "Gebes, Ata"]
[Black "Ersoz, Teoman Guney"]
[Result "0-1"]
[ECO "E16"]
[WhiteElo "1562"]
[BlackElo "1691"]
[Annotator "NA RC COMBH"]
[PlyCount "104"]
[EventDate "2023.01.17"]
[EventType "swiss"]
[EventCountry "TUR"]
[SourceTitle "playchess.com"]
[Source "ChessBase"]
[SourceQuality "1"]
[TimeControl "5400+30"]

1. d4 Nf6 2. c4 e6 3. Nf3 b6 4. g3 Bb7 5. Bg2 Bb4+ 6. Bd2 Bxd2+ 7. Nbxd2 d6 8. Qc2 Nbd7 9. e4 {[%emt 0:16:00]} O-O {[%emt 0:26:00]} 10. O-O {[%emt 0:01:30]} e5 {[%emt 0:02:30]} 11. Rfe1 {[%emt 0:13:30]} Re8 {[%emt 0:01:30]} 12. d5 {[%emt 0:03:30]} a5 {[%emt 0:00:30]} 13. b3 {[%emt 0:01:30]} c6 {[%emt 0:01:30]} 14. dxc6 {[%emt 0:04:30]} Bxc6 {[%emt 0:00:30]} 15. Nh4 {[%emt 0:12:30]} Nc5 {[%emt 0:02:30]} 16. Rad1 {[%emt 0:03:30]} Qc7 {[%emt 0:10:30]} 17. Nb1 {[%emt 0:03:30]} Rad8 {[%emt 0:01:30]} 18. Nc3 {[%emt 0:00:30]} Ne6 {[%emt 0:01:30]} 19. Qd2 {[%emt 0:02:30]} g6 {[%emt 0:23:30]} 20. a3 {[%emt 0:05:30]} Kg7 {[%emt 0:01:30]} 21. h3 {[%emt 0:08:30]} h6 {[%emt 0:01:30]} 22. Qe3 {[%emt 0:00:30]} Nd4 {[%emt 0:01:30]} 23. Rxd4 {[%emt 0:02:30]} exd4 {[%emt 0:00:30]} 24. Qxd4 {[%emt 0:00:00]} Re6 {[%emt 0:08:22]} 25. Nf3 {[%emt 0:05:27]} Rde8 {[%emt 0:00:30]} 26. Nd2 {[%emt 0:00:07]} Kh7 {[%emt 0:03:05]} 27. Kh2 {[%emt 0:02:14]} Qb7 {[%emt 0:04:01]} 28. Nd5 {[%emt 0:01:33]} Nxd5 {[%emt 0:05:14]} 29. exd5 {[%emt 0:01:25]} Rxe1 {[%emt 0:00:07]} 30. dxc6 {[%emt 0:00:03]} Qe7 {[%emt 0:04:06]} 31. Nf3 {[%emt 0:00:30]} Re2 {[%emt 0:00:30]} 32. Qxb6 {[%emt 0:01:43]} Qd8 {[%emt 0:02:58]} 33. Qxd8 {[%emt 0:00:30]} Rxd8 {[%emt 0:00:30]} 34. Nd4 {[%emt 0:00:30]} Rxf2 {[%emt 0:00:30]} 35. b4 {[%emt 0:00:20]} axb4 {[%emt 0:00:00]} 36. axb4 {[%emt 0:00:01]} Ra8 {[%emt 0:01:02]} 37. c7 {[%emt 0:05:05]} Rc8 {[%emt 0:00:24]} 38. Nb5 {[%emt 0:07:47]} Rc2 {[%emt 0:00:26]} 39. Nxd6 {[%emt 0:01:22]} Rxc7 {[%emt 0:00:01]} 40. Kg1 {[%emt 0:00:10]} Ra7 {[%emt 0:00:35]} 41. Bf1 {[%emt 0:01:04]} Ra1 {[%emt 0:00:30]} 42. b5 {[%emt 0:00:30]} Rcc1 {[%emt 0:00:00]} 43. b6 {[%emt 0:00:00]} Rxf1+ {[%emt 0:00:30]} 44. Kg2 {[%emt 0:00:00]} Rfb1 {[%emt 0:01:10]} 45. c5 {[%emt 0:00:00]} Ra5 {[%emt 0:00:12]} 46. Ne4 {[%emt 0:00:23]} Rbb5 {[%emt 0:01:06]} 47. Nf6+ {[%emt 0:00:41]} Kg7 {[%emt 0:00:51]} 48. Nd7 {[%emt 0:00:30]} Rxc5 {[%emt 0:00:00]} 49. b7 {[%emt 0:00:21]} Rcb5 {[%emt 0:00:14]} 50. b8=Q {[%emt 0:00:00]} Rxb8 {[%emt 0:00:26]} 51. Nxb8 {[%emt 0:00:11]} Kf6 {[%emt 0:00:00]} 52. Nc6 {[%emt 0:00:17]} Ra3 {[%emt 0:00:07]} 0-1

[Event "TUR-ch U13-18 Open 2023"]
[Site "Antalya"]
[Date "2023.01.27"]
[Round "9"]
[White "Cicek, Bilal Emre"]
[Black "Binboga, Yaman"]
[Result "1/2-1/2"]
[ECO "D00"]
[WhiteElo "1538"]
[BlackElo "1641"]
[Annotator "NA RC COMBH"]
[PlyCount "116"]
[EventDate "2023.01.17"]
[EventType "swiss"]
[EventCountry "TUR"]
[SourceTitle "playchess.com"]
[Source "ChessBase"]
[SourceQuality "1"]
[TimeControl "5400+30"]

1. d4 Nf6 2. Nc3 d5 3. Bf4 c6 4. e3 Bf5 5. f3 e6 6. g4 Bg6 7. h4 h5 8. g5 Ng8 9. Qd2 Bd6 10. Bxd6 Qxd6 11. O-O-O Ne7 12. Qh2 Qxh2 13. Rxh2 O-O 14. Nh3 Nd7 {[%emt 0:13:30]} 15. e4 {[%emt 0:30:00]} Rad8 {[%emt 0:02:30]} 16. Rhd2 {[%emt 0:10:30]} b5 {[%emt 0:05:30]} 17. Bg2 {[%emt 0:06:30]} b4 {[%emt 0:23:30]} 18. Ne2 {[%emt 0:00:30]} Rc8 {[%emt 0:08:30]} 19. Nf2 {[%emt 0:24:30]} c5 {[%emt 0:05:30]} 20. Nd3 {[%emt 0:01:30]} a5 {[%emt 0:06:30]} 21. dxc5 {[%emt 0:07:30]} Nxc5 {[%emt 0:00:00]} 22. Nxc5 {[%emt 0:01:30]} Rxc5 {[%emt 0:00:00]} 23. Rd3 {[%emt 0:05:27]} Rfc8 {[%emt 0:07:30]} 24. c3 {[%emt 0:00:13]} Rc4 {[%emt 0:02:30]} 25. Rd4 {[%emt 0:01:06]} Rxd4 {[%emt 0:00:30]} 26. Rxd4 {[%emt 0:00:44]} Nc6 {[%emt 0:07:54]} 27. Rd2 {[%emt 0:02:23]} Ne5 {[%emt 0:02:01]} 28. Rd4 {[%emt 0:01:16]} Nc4 {[%emt 0:03:18]} 29. exd5 {[%emt 0:03:36]} e5 {[%emt 0:06:45]} 30. Bh3 {[%emt 0:00:30]} Rc5 {[%emt 0:00:30]} 31. Rd1 {[%emt 0:00:30]} Ne3 {[%emt 0:00:30]} 32. Rd2 {[%emt 0:02:32]} Nxd5 {[%emt 0:01:08]} 33. Kd1 {[%emt 0:00:35]} bxc3 {[%emt 0:01:31]} 34. bxc3 {[%emt 0:00:06]} Nxc3+ {[%emt 0:01:07]} 35. Nxc3 {[%emt 0:00:30]} Rxc3 {[%emt 0:00:00]} 36. Rd8+ {[%emt 0:00:22]} Kh7 {[%emt 0:00:13]} 37. Bg2 {[%emt 0:00:30]} Rc4 {[%emt 0:00:00]} 38. Rd5 {[%emt 0:00:00]} a4 {[%emt 0:00:25]} 39. Rxe5 {[%emt 0:00:19]} Rxh4 {[%emt 0:00:00]} 40. Bf1 {[%emt 0:01:02]} Rf4 {[%emt 0:00:10]} 41. Ke2 {[%emt 0:00:22]} h4 {[%emt 0:00:05]} 42. Ke3 {[%emt 0:00:52]} Rb4 {[%emt 0:00:10]} 43. f4 {[%emt 0:00:45]} Rb1 {[%emt 0:01:02]} 44. Bg2 {[%emt 0:00:38]} Rb2 {[%emt 0:01:40]} 45. Bf3 {[%emt 0:00:05]} f6 {[%emt 0:01:08]} 46. Ra5 {[%emt 0:00:09]} fxg5 {[%emt 0:00:52]} 47. Rxa4 {[%emt 0:00:18]} Bf5 {[%emt 0:00:48]} 48. fxg5 {[%emt 0:00:55]} h3 {[%emt 0:00:24]} 49. Kf4 {[%emt 0:01:22]} Rb5 {[%emt 0:01:44]} 50. Rd4 {[%emt 0:01:59]} Bg6 {[%emt 0:00:21]} 51. Kg3 {[%emt 0:00:24]} Rxg5+ {[%emt 0:00:52]} 52. Kxh3 {[%emt 0:00:20]} Ra5 {[%emt 0:01:12]} 53. a4 {[%emt 0:01:59]} Be8 {[%emt 0:01:57]} 54. Bd1 {[%emt 0:00:31]} Kh6 {[%emt 0:00:41]} 55. Kh4 {[%emt 0:01:11]} g5+ {[%emt 0:01:02]} 56. Kg3 {[%emt 0:00:30]} Ra6 {[%emt 0:00:30]} 57. Bc2 {[%emt 0:00:30]} Bg6 {[%emt 0:00:30]} 58. Bd1 {[%emt 0:00:30]} Bh5 {[%emt 0:00:22]} 1/2-1/2